fUSD/lending_fUSD_20250226
["ID","MTS","AMOUNT","RATE_DAILY","PERIOD"]
[354559337,1740575157172,1242.91,0.00039178,14]
[354559338,1740575157411,1242.91,0.00039452,14]
[354559339,1740575157659,1242.91,0.00039726,14]
[354559340,1740575157927,1242.91,0.0004,14]
[354559341,1740575159421,2448.7,0.00038356,14]
[354559342,1740575159604,500.0,0.00038356,14]
[354559343,1740575159886,515.26709367,0.0003863,14]
[354559344,1740575160033,2448.7,0.0003863,14]
[354559345,1740575160305,2448.7,0.00038904,14]
[354559346,1740575160404,4967.36,0.00038356,14]
[354559347,1740575160554,2448.7,0.00039178,14]
[354559348,1740575160654,4967.36,0.0003863,14]
[354559349,1740575160800,2448.7,0.00039452,14]
[354559350,1740575160910,4967.36,0.00038904,14]
[354559351,1740575161179,4967.36,0.00039178,14]
[354559352,1740575161403,2448.7,0.00039726,14]
[354559353,1740575161489,4967.36,0.00039452,14]
[354559354,1740575161666,2448.7,0.0004,14]
[354559355,1740575161722,4967.36,0.00039726,14]
[354559356,1740575161982,4967.36,0.0004,14]
[354559357,1740575162026,751.34,0.00038356,14]
[354559358,1740575162953,751.34,0.0003863,14]
[354559359,1740575163112,751.34,0.00038904,14]
[354559360,1740575163164,751.34,0.00039178,14]
[354559361,1740575163216,150.0,0.00039609,30]
[354559362,1740575163244,751.34,0.00039452,14]
[354559363,1740575163322,751.34,0.00039726,14]
[354559364,1740575163566,751.34,0.0004,14]
[354559365,1740575164436,500.0,0.00038356,14]
[354559366,1740575164673,500.0,0.0003863,14]
[354559367,1740575164938,500.0,0.00038904,14]
[354559368,1740575165095,500.0,0.00038356,14]
[354559369,1740575165184,500.0,0.00039178,14]
[354559370,1740575165469,500.0,0.0003863,14]
[354559371,1740575165500,500.0,0.00039452,14]
[354559372,1740575165711,500.0,0.00038904,14]
[354559373,1740575165738,500.0,0.00039726,14]
[354559374,1740575165951,500.0,0.00039178,14]
[354559375,1740575165994,500.0,0.0004,14]
[354559376,1740575166190,500.0,0.00039452,14]
[354559377,1740575166433,500.0,0.00039726,14]
[354559378,1740575166671,215.12703315,0.0004,14]
[354559379,1740575166867,150.0,0.00039609,30]
[354559380,1740575168244,150.0,0.00039609,30]
[354559381,1740575170007,2720.53,0.00038356,14]
[354559382,1740575170195,500.0,0.00038356,14]
[354559383,1740575170512,500.0,0.0003863,14]
[354559384,1740575170795,500.0,0.00038904,14]
[354559385,1740575170835,2720.53,0.0003863,14]
[354559386,1740575171048,500.0,0.00039178,14]
[354559387,1740575171079,2720.53,0.00038904,14]
[354559388,1740575171294,500.0,0.00039452,14]
[354559389,1740575171329,2720.53,0.00039178,14]
[354559390,1740575171548,500.0,0.00039726,14]
[354559391,1740575171595,2720.53,0.00039452,14]
[354559392,1740575171808,500.0,0.0004,14]
[354559393,1740575171846,2720.53,0.00039726,14]
[354559394,1740575172084,2720.53,0.0004,14]
[354559395,1740575172634,500.0,0.00038356,14]
[354559396,1740575173452,500.0,0.00038356,14]
[354559397,1740575173515,502.17652688,0.0003863,14]
[354559398,1740575173710,207.17654766,0.00039609,30]
[354559399,1740575174213,716.95,0.00038356,14]
[354559400,1740575174453,716.95,0.0003863,14]
[354559401,1740575174689,716.95,0.00038904,14]
[354559402,1740575174959,716.95,0.00039178,14]
[354559403,1740575175207,716.95,0.00039452,14]
[354559404,1740575175452,716.95,0.00039726,14]
[354559405,1740575175531,10492.23917549,0.0004,35]
[354559406,1740575175720,716.95,0.0004,14]
[354559407,1740575176180,500.0,0.00038356,14]
[354559408,1740575176421,432.55412823,0.0003863,14]
[354559409,1740575176594,897.6,0.00038356,14]
[354559410,1740575176820,897.6,0.0003863,14]
[354559411,1740575177084,897.6,0.00038904,14]
[354559412,1740575177347,897.6,0.00039178,14]
[354559413,1740575177478,2630.51372631,0.00039609,30]
[354559414,1740575177592,897.6,0.00039452,14]
[354559415,1740575177875,897.6,0.00039726,14]
[354559416,1740575178282,897.6,0.0004,14]
[354559417,1740575178492,865.83,0.00038356,14]
[354559418,1740575178757,865.83,0.0003863,14]
[354559419,1740575178993,865.83,0.00038904,14]
[354559420,1740575179251,865.83,0.00039178,14]
[354559421,1740575179494,865.83,0.00039452,14]
[354559422,1740575179731,865.83,0.00039726,14]
[354559423,1740575179971,865.83,0.0004,14]
[354559424,1740575180102,500.0,0.00038356,14]
[354559425,1740575181089,239.25880998,0.00039609,30]
[354559426,1740575182071,555.27,0.00038356,14]
[354559427,1740575182312,555.27,0.0003863,14]
[354559428,1740575182899,555.27,0.00038904,14]
[354559429,1740575183150,555.27,0.00039178,14]
[354559430,1740575183891,555.27,0.00039452,14]
[354559431,1740575183944,555.27,0.00039726,14]
[354559432,1740575184067,555.27,0.0004,14]
[354559433,1740575186187,500.0,0.00038356,14]
[354559434,1740575186303,500.0,0.00038356,14]
[354559435,1740575186441,500.0,0.0003863,14]
[354559436,1740575187033,500.0,0.00038904,14]
[354559437,1740575188584,2021.18,0.00038356,14]
[354559438,1740575188832,2021.18,0.0003863,14]
[354559439,1740575189136,2021.18,0.00038904,14]
[354559440,1740575189311,2021.18,0.00039178,14]
[354559441,1740575189575,2021.18,0.00039452,14]
[354559442,1740575189834,2021.18,0.00039726,14]
[354559443,1740575190098,2021.18,0.0004,14]
[354559444,1740575190288,1000.0,0.00038356,14]
[354559445,1740575190543,1005.66584071,0.0003863,14]
[354559446,1740575191014,1380.31,0.00038356,14]
[354559447,1740575191292,1380.31,0.0003863,14]
[354559448,1740575191541,1380.31,0.00038904,14]
[354559449,1740575191778,1380.31,0.00039178,14]
[354559450,1740575191979,769.26,0.00038356,14]
[354559451,1740575192030,1380.31,0.00039452,14]
[354559452,1740575192221,769.26,0.0003863,14]
[354559453,1740575192339,1380.31,0.00039726,14]
[354559454,1740575192524,769.26,0.00038904,14]
[354559455,1740575192571,1380.31,0.0004,14]
[354559456,1740575192767,769.26,0.00039178,14]
[354559457,1740575193023,769.26,0.00039452,14]
[354559458,1740575193273,769.26,0.00039726,14]
[354559459,1740575193513,769.26,0.0004,14]
[354559460,1740575194816,500.0,0.00038356,14]
[354559461,1740575195076,500.0,0.0003863,14]
[354559462,1740575195331,500.0,0.00038904,14]
[354559463,1740575195627,500.0,0.00039178,14]
[354559464,1740575195871,500.0,0.00039452,14]
[354559465,1740575196118,500.0,0.00039726,14]
[354559466,1740575197413,5632.78,0.00038356,14]
[354559467,1740575198357,5632.78,0.0003863,14]
[354559468,1740575198599,5632.78,0.00038904,14]
[354559469,1740575198847,5632.78,0.00039178,14]
[354559470,1740575199113,5632.78,0.00039452,14]
[354559471,1740575199224,500.0,0.00038356,14]
[354559472,1740575199425,5632.78,0.00039726,14]
[354559473,1740575199460,500.0,0.0003863,14]
[354559474,1740575199694,500.0,0.00038904,14]
[354559475,1740575199722,1903.53994254,0.0004,14]
[354559477,1740575232866,-1003.99,0.00038356,14]
[354559478,1740575232898,-2223.55,0.00038356,14]
[354559479,1740575232928,-500.0,0.00038356,14]
[354559480,1740575232960,-500.0,0.00038356,14]
[354559481,1740575232988,-1633.45,0.00038356,14]
[354559482,1740575233017,-5865.29,0.00038356,14]
[354559483,1740575233046,-506.08,0.00038356,14]
[354559484,1740575233081,-500.0,0.00038356,14]
[354559485,1740575233111,-1724.37,0.00038356,14]
[354559486,1740575233141,-500.0,0.00038356,14]
[354559487,1740575233170,-754.51,0.00038356,14]
[354559488,1740575233199,-1480.7,0.00038356,14]
[354559489,1740575233230,-818.41,0.00038356,14]
[354559490,1740575233260,-1003.99,0.0003863,14]
[354559491,1740575233289,-2223.55,0.0003863,14]
[354559492,1740575233319,-500.0,0.0003863,14]
[354559493,1740575233349,-500.0,0.0003863,14]
[354559494,1740575233379,-1633.45,0.0003863,14]
[354559495,1740575233410,-5865.29,0.0003863,14]
[354559496,1740575233440,-506.08,0.0003863,14]
[354559497,1740575233478,-500.0,0.0003863,14]
[354559498,1740575233509,-1724.37,0.0003863,14]
[354559499,1740575233541,-561.4090727,0.0003863,14]
[354559500,1740575233572,-754.51,0.0003863,14]
[354559501,1740575233602,-1480.7,0.0003863,14]
[354559502,1740575233632,-818.41,0.0003863,14]
[354559503,1740575233663,-1003.99,0.00038904,14]
[354559504,1740575233695,-2223.55,0.00038904,14]
[354559505,1740575233725,-500.0,0.00038904,14]
[354559506,1740575233755,-500.0,0.00038904,14]
[354559507,1740575233786,-1633.45,0.00038904,14]
[354559508,1740575233816,-5865.29,0.00038904,14]
[354559509,1740575233849,-506.08,0.00038904,14]
[354559510,1740575233884,-500.0,0.00038904,14]
[354559511,1740575233917,-1724.37,0.00038904,14]
[354559512,1740575233952,-754.51,0.00038904,14]
[354559513,1740575233982,-1480.7,0.00038904,14]
[354559514,1740575234011,-818.41,0.00038904,14]
[354559515,1740575269180,-2469.31,0.00038356,14]
[354559516,1740575269210,-500.0,0.00038356,14]
[354559517,1740575269242,-500.0,0.00038356,14]
[354559518,1740575269271,-793.87,0.00038356,14]
[354559519,1740575269299,-2851.43,0.00038356,14]
[354559520,1740575269328,-666.5,0.00038356,14]
[354559521,1740575269357,-458.63535239,0.00038356,14]
[354559522,1740575269386,-661.76,0.00038356,14]
[354559523,1740575269416,-500.0,0.00038356,14]
[354559524,1740575269445,-500.0,0.00038356,14]
[354559525,1740575269476,-500.0,0.00038356,14]
[354559526,1740575269504,-500.0,0.00038356,14]
[354559527,1740575269532,-500.0,0.00038356,14]
[354559528,1740575269560,-500.0,0.00038356,14]
[354559529,1740575269588,-356.90170955,0.00038356,14]
[354559530,1740575269616,-674.56,0.00038356,14]
[354559531,1740575269645,-500.0,0.00038356,14]
[354559532,1740575269674,-506.11975319,0.00038356,14]
[354559533,1740575269703,-2469.31,0.0003863,14]
[354559534,1740575269732,-500.0,0.0003863,14]
[354559535,1740575269761,-500.0,0.0003863,14]
[354559536,1740575269790,-793.87,0.0003863,14]
[354559537,1740575269820,-2851.43,0.0003863,14]
[354559538,1740575269848,-666.5,0.0003863,14]
[354559539,1740575269879,-661.76,0.0003863,14]
[354559540,1740575269914,-500.0,0.0003863,14]
[354559541,1740575269944,-674.56,0.0003863,14]
[354559542,1740575269985,-500.0,0.0003863,14]
[354559543,1740575270015,-1469.65636974,0.00038904,14]
[354559545,1740575293016,-500.0,0.00038356,14]
[354559546,1740575293045,-819.63,0.00038356,14]
[354559547,1740575293072,-954.92,0.00038356,14]
[354559548,1740575293105,-500.0,0.00038356,14]
[354559549,1740575293133,-2642.62,0.00038356,14]
[354559550,1740575293160,-500.0,0.00038356,14]
[354559551,1740575293188,-1530.02,0.00038356,14]
[354559552,1740575293216,-500.0,0.0003863,14]
[354559553,1740575293245,-819.63,0.0003863,14]
[354559554,1740575293272,-954.92,0.0003863,14]
[354559555,1740575293300,-500.0,0.0003863,14]
[354559556,1740575293328,-2642.62,0.0003863,14]
[354559557,1740575293355,-500.0,0.0003863,14]
[354559558,1740575293384,-267.26,0.0003863,14]
[354559560,1740575317798,-3744.89,0.00038356,14]
[354559561,1740575317826,-1429.61,0.00038356,14]
[354559562,1740575317855,-500.0,0.00038356,14]
[354559563,1740575317885,-825.28,0.00038356,14]
[354559564,1740575317918,-500.0,0.00038356,14]
[354559565,1740575317949,-394.44,0.00038356,14]
[354559566,1740575329509,-105.56,0.00038356,14]
[354559567,1740575329540,-500.0,0.00038356,14]
[354559568,1740575329570,-500.0,0.00038356,14]
[354559569,1740575329600,-863.05,0.00038356,14]
[354559570,1740575329630,-686.95,0.00038356,14]
[354559571,1740575329659,-1029.48,0.00038356,14]
[354559573,1740575339161,-129.92,0.00038356,14]
[354559574,1740575339193,-500.0,0.00038356,14]
[354559575,1740575339222,-984.61,0.00038356,14]
[354559610,1740575431966,-175.89,0.00021918,2]
[354559612,1740575431976,-111.36351559,0.00038356,14]
[354559615,1740575431988,-474.57648441,0.00038356,14]
[354559616,1740575431997,-321.02351559,0.00038356,14]
[354559617,1740575432008,-230.71648441,0.00038356,14]
[354559618,1740575432020,-169.28351559,0.00038356,14]
[354559619,1740575432059,-330.71648441,0.00038356,14]
[354559620,1740575432069,-1570.24,0.00038356,14]
[354559621,1740575432078,-500.0,0.00038356,14]
[354559622,1740575432088,-500.0,0.00038356,14]
[354559623,1740575432097,-500.0,0.00038356,14]
[354559624,1740575432107,-500.0,0.00038356,14]
[354559625,1740575432116,-500.0,0.00038356,14]
[354559626,1740575432126,-989.55,0.00038356,14]
[354559627,1740575432135,-500.0,0.00038356,14]
[354559628,1740575432144,-1767.47,0.00038356,14]
[354559629,1740575432154,-500.0,0.00038356,14]
[354559630,1740575432163,-500.0,0.00038356,14]
[354559631,1740575432172,-719.22,0.00038356,14]
[354559632,1740575432181,-523.47,0.00038356,14]
[354559633,1740575432190,-686.69,0.00038356,14]
[354559634,1740575432199,-1537.63,0.00038356,14]
[354559635,1740575432208,-500.0,0.00038356,14]
[354559636,1740575432217,-968.6,0.00038356,14]
[354559637,1740575432226,-1575.95,0.00038356,14]
[354559638,1740575432236,-543.4,0.00038356,14]
[354559639,1740575432245,-528.58,0.00038356,14]
[354559640,1740575432254,-2432.41,0.00038356,14]
[354559641,1740575432264,-541.83,0.00038356,14]
[354559642,1740575432273,-1795.79,0.00038356,14]
[354559643,1740575432283,-1000.0,0.00038585,7]
[354559644,1740575432293,-1262.76,0.0003863,14]
[354559645,1740575432302,-3744.89,0.0003863,14]
[354559646,1740575432311,-1429.61,0.0003863,14]
[354559647,1740575432321,-500.0,0.0003863,14]
[354559648,1740575432330,-825.28,0.0003863,14]
[354559649,1740575432340,-500.0,0.0003863,14]
[354559650,1740575432349,-500.0,0.0003863,14]
[354559651,1740575432360,-500.0,0.0003863,14]
[354559652,1740575432370,-500.0,0.0003863,14]
[354559654,1740575432380,-863.05,0.0003863,14]
[354559655,1740575432390,-686.95,0.0003863,14]
[354559657,1740575432399,-1159.4,0.0003863,14]
[354559659,1740575432409,-500.0,0.0003863,14]
[354559662,1740575432420,-1570.55,0.0003863,14]
[354559664,1740575432429,-551.74,0.0003863,14]
[354559666,1740575432439,-500.0,0.0003863,14]
[354559668,1740575432448,-1570.24,0.0003863,14]
[354559669,1740575432457,-500.0,0.0003863,14]
[354559672,1740575432467,-500.0,0.0003863,14]
[354559674,1740575432477,-500.0,0.0003863,14]
[354559675,1740575432487,-513.52142485,0.0003863,14]
[354559678,1740575432497,-500.0,0.0003863,14]
[354559680,1740575432507,-989.55,0.0003863,14]
[354559682,1740575432516,-500.0,0.0003863,14]
[354559683,1740575432525,-1767.47,0.0003863,14]
[354559686,1740575432535,-500.0,0.0003863,14]
[354559688,1740575432544,-515.7802528,0.0003863,14]
[354559690,1740575432553,-523.47,0.0003863,14]
[354559691,1740575432563,-719.22,0.0003863,14]
[354559693,1740575432572,-686.69,0.0003863,14]
[354559695,1740575432582,-1537.63,0.0003863,14]
[354559698,1740575432591,-500.0,0.0003863,14]
[354559701,1740575432600,-968.6,0.0003863,14]
[354559705,1740575432611,-1575.95,0.0003863,14]
[354559708,1740575432620,-543.4,0.0003863,14]
[354559711,1740575432629,-528.58,0.0003863,14]
[354559713,1740575432638,-2432.41,0.0003863,14]
[354559717,1740575432649,-541.83,0.0003863,14]
[354559720,1740575432658,-1795.79,0.0003863,14]
[354559723,1740575432668,-999.65363026,0.00038904,14]
[354559726,1740575432677,-415.76575157,0.00038904,14]
[354559728,1740575432686,-500.0,0.00038904,14]
[354559730,1740575432695,-793.87,0.00038904,14]
[354559732,1740575432705,-2851.43,0.00038904,14]
[354559734,1740575432715,-666.5,0.00038904,14]
[354559736,1740575432725,-661.76,0.00038904,14]
[354559738,1740575432734,-500.0,0.00038904,14]
[354559739,1740575432744,-674.56,0.00038904,14]
[354559740,1740575432754,-500.0,0.00038904,14]
[354559741,1740575432763,-500.0,0.00038904,14]
[354559742,1740575432772,-819.63,0.00038904,14]
[354559743,1740575432781,-954.92,0.00038904,14]
[354559744,1740575432791,-500.0,0.00038904,14]
[354559745,1740575432800,-2642.62,0.00038904,14]
[354559746,1740575432809,-500.0,0.00038904,14]
[354559747,1740575432819,-1530.02,0.00038904,14]
[354559748,1740575432828,-3744.89,0.00038904,14]
[354559749,1740575432837,-1429.61,0.00038904,14]
[354559750,1740575432847,-500.0,0.00038904,14]
[354559751,1740575432857,-659.2061407,0.00038904,14]
[354559753,1740575432881,-166.0738593,0.00038904,14]
[354559755,1740575432891,-125.4611211,0.00038904,14]
[354559757,1740575432902,-72.44698211,0.00038904,14]
[354559759,1740575432912,-500.0,0.00038904,14]
[354559761,1740575432921,-500.0,0.00038904,14]
[354559763,1740575432931,-500.0,0.00038904,14]
[354559765,1740575432945,-863.05,0.00038904,14]
[354559767,1740575432954,-686.95,0.00038904,14]
[354559769,1740575432964,-1159.4,0.00038904,14]
[354559771,1740575432973,-500.0,0.00038904,14]
[354559773,1740575432983,-1570.55,0.00038904,14]
[354559775,1740575432992,-551.74,0.00038904,14]
[354559777,1740575433001,-500.0,0.00038904,14]
[354559779,1740575433011,-1570.24,0.00038904,14]
[354559781,1740575433020,-500.0,0.00038904,14]
[354559783,1740575433030,-500.0,0.00038904,14]
[354559785,1740575433039,-500.0,0.00038904,14]
[354559787,1740575433048,-500.0,0.00038904,14]
[354559789,1740575433057,-989.55,0.00038904,14]
[354559791,1740575433066,-500.0,0.00038904,14]
[354559792,1740575433075,-1767.47,0.00038904,14]
[354559794,1740575433085,-507.14235011,0.00038904,14]
[354559797,1740575433095,-523.47,0.00038904,14]
[354559799,1740575433105,-719.22,0.00038904,14]
[354559800,1740575433114,-686.69,0.00038904,14]
[354559803,1740575433124,-1537.63,0.00038904,14]
[354559805,1740575433134,-500.0,0.00038904,14]
[354559806,1740575433143,-968.6,0.00038904,14]
[354559808,1740575433152,-1575.95,0.00038904,14]
[354559810,1740575433162,-543.4,0.00038904,14]
[354559812,1740575433173,-528.58,0.00038904,14]
[354559814,1740575433182,-2432.41,0.00038904,14]
[354559816,1740575433192,-541.83,0.00038904,14]
[354559818,1740575433201,-1795.79,0.00038904,14]
[354559820,1740575433211,-500.0,0.00039178,14]
[354559822,1740575433221,-1003.99,0.00039178,14]
[354559824,1740575433230,-2223.55,0.00039178,14]
[354559826,1740575433240,-500.0,0.00039178,14]
[354559828,1740575433249,-500.0,0.00039178,14]
[354559830,1740575433259,-1633.45,0.00039178,14]
[354559832,1740575433269,-5865.29,0.00039178,14]
[354559834,1740575433279,-506.08,0.00039178,14]
[354559836,1740575433290,-500.0,0.00039178,14]
[354559838,1740575433299,-1724.37,0.00039178,14]
[354559840,1740575433309,-754.51,0.00039178,14]
[354559842,1740575433321,-1480.7,0.00039178,14]
[354559844,1740575433331,-818.41,0.00039178,14]
[354559846,1740575433341,-2469.31,0.00039178,14]
[354559848,1740575433351,-500.0,0.00039178,14]
[354559850,1740575433366,-793.87,0.00039178,14]
[354559852,1740575433375,-2851.43,0.00039178,14]
[354559854,1740575433385,-666.5,0.00039178,14]
[354559856,1740575433394,-661.76,0.00039178,14]
[354559858,1740575433404,-500.0,0.00039178,14]
[354559860,1740575433414,-674.56,0.00039178,14]
[354559862,1740575433424,-500.0,0.00039178,14]
[354559864,1740575433434,-500.0,0.00039178,14]
[354559866,1740575433443,-819.63,0.00039178,14]
[354559868,1740575433452,-954.92,0.00039178,14]
[354559870,1740575433462,-500.0,0.00039178,14]
[354559872,1740575433472,-2642.62,0.00039178,14]
[354559874,1740575433483,-500.0,0.00039178,14]
[354559876,1740575433492,-1530.02,0.00039178,14]
[354559878,1740575433502,-3744.89,0.00039178,14]
[354559880,1740575433512,-1429.61,0.00039178,14]
[354559882,1740575433522,-500.0,0.00039178,14]
[354559884,1740575433532,-825.28,0.00039178,14]
[354559886,1740575433542,-500.0,0.00039178,14]
[354559888,1740575433552,-500.0,0.00039178,14]
[354559890,1740575433562,-500.0,0.00039178,14]
[354559892,1740575433571,-863.05,0.00039178,14]
[354559894,1740575433581,-686.95,0.00039178,14]
[354559896,1740575433590,-1159.4,0.00039178,14]
[354559898,1740575433600,-500.0,0.00039178,14]
[354559900,1740575433612,-1570.55,0.00039178,14]
[354559902,1740575433621,-551.74,0.00039178,14]
[354559904,1740575433632,-500.0,0.00039178,14]
[354559906,1740575433642,-1570.24,0.00039178,14]
[354559908,1740575433652,-500.0,0.00039178,14]
[354559910,1740575433661,-500.0,0.00039178,14]
[354559912,1740575433672,-500.0,0.00039178,14]
[354559914,1740575433682,-500.0,0.00039178,14]
[354559915,1740575433693,-989.55,0.00039178,14]
[354559917,1740575433702,-500.0,0.00039178,14]
[354559920,1740575433713,-1767.47,0.00039178,14]
[354559921,1740575433724,-523.47,0.00039178,14]
[354559924,1740575433737,-719.22,0.00039178,14]
[354559926,1740575433747,-686.69,0.00039178,14]
[354559928,1740575433757,-1537.63,0.00039178,14]
[354559930,1740575433766,-500.0,0.00039178,14]
[354559932,1740575433776,-968.6,0.00039178,14]
[354559933,1740575433786,-1575.95,0.00039178,14]
[354559935,1740575433796,-543.4,0.00039178,14]
[354559937,1740575433805,-528.58,0.00039178,14]
[354559939,1740575433814,-2432.41,0.00039178,14]
[354559941,1740575433824,-541.83,0.00039178,14]
[354559943,1740575433833,-1795.79,0.00039178,14]
[354559945,1740575433843,-4427.84,0.00039242,2]
[354559947,1740575433852,-500.0,0.00039452,14]
[354559949,1740575433864,-1003.99,0.00039452,14]
[354559951,1740575433874,-2223.55,0.00039452,14]
[354559953,1740575433883,-500.0,0.00039452,14]
[354559955,1740575433893,-500.0,0.00039452,14]
[354559957,1740575433902,-1633.45,0.00039452,14]
[354559959,1740575433912,-5865.29,0.00039452,14]
[354559961,1740575433923,-506.08,0.00039452,14]
[354559963,1740575433933,-500.0,0.00039452,14]
[354559965,1740575433947,-1724.37,0.00039452,14]
[354559967,1740575433957,-754.51,0.00039452,14]
[354559969,1740575433967,-1480.7,0.00039452,14]
[354559971,1740575433978,-818.41,0.00039452,14]
[354559973,1740575433987,-2469.31,0.00039452,14]
[354559976,1740575433997,-500.0,0.00039452,14]
[354559977,1740575434008,-793.87,0.00039452,14]
[354559980,1740575434021,-2851.43,0.00039452,14]
[354559981,1740575434030,-666.5,0.00039452,14]
[354559983,1740575434040,-661.76,0.00039452,14]
[354559985,1740575434049,-500.0,0.00039452,14]
[354559987,1740575434059,-674.56,0.00039452,14]
[354559989,1740575434069,-500.0,0.00039452,14]
[354559991,1740575434079,-500.0,0.00039452,14]
[354559994,1740575434088,-819.63,0.00039452,14]
[354559995,1740575434098,-954.92,0.00039452,14]
[354559997,1740575434109,-500.0,0.00039452,14]
[354559999,1740575434119,-2642.62,0.00039452,14]
[354560001,1740575434128,-500.0,0.00039452,14]
[354560004,1740575434138,-1530.02,0.00039452,14]
[354560005,1740575434148,-3744.89,0.00039452,14]
[354560007,1740575434157,-1429.61,0.00039452,14]
[354560009,1740575434167,-500.0,0.00039452,14]
[354560011,1740575434177,-825.28,0.00039452,14]
[354560013,1740575434186,-500.0,0.00039452,14]
[354560015,1740575434196,-500.0,0.00039452,14]
[354560017,1740575434206,-500.0,0.00039452,14]
[354560019,1740575434215,-863.05,0.00039452,14]
[354560021,1740575434225,-686.95,0.00039452,14]
[354560023,1740575434234,-1159.4,0.00039452,14]
[354560025,1740575434244,-500.0,0.00039452,14]
[354560027,1740575434253,-1570.55,0.00039452,14]
[354560029,1740575434263,-551.74,0.00039452,14]
[354560031,1740575434272,-500.0,0.00039452,14]
[354560033,1740575434281,-1570.24,0.00039452,14]
[354560035,1740575434291,-500.0,0.00039452,14]
[354560037,1740575434301,-500.0,0.00039452,14]
[354560039,1740575434310,-500.0,0.00039452,14]
[354560041,1740575434320,-500.0,0.00039452,14]
[354560043,1740575434330,-989.55,0.00039452,14]
[354560045,1740575434340,-500.0,0.00039452,14]
[354560047,1740575434349,-1767.47,0.00039452,14]
[354560049,1740575434361,-523.47,0.00039452,14]
[354560051,1740575434371,-719.22,0.00039452,14]
[354560053,1740575434380,-686.69,0.00039452,14]
[354560055,1740575434390,-1537.63,0.00039452,14]
[354560057,1740575434399,-500.0,0.00039452,14]
[354560059,1740575434409,-968.6,0.00039452,14]
[354560061,1740575434418,-1575.95,0.00039452,14]
[354560063,1740575434428,-543.4,0.00039452,14]
[354560065,1740575434437,-528.58,0.00039452,14]
[354560067,1740575434447,-2432.41,0.00039452,14]
[354560069,1740575434456,-541.83,0.00039452,14]
[354560071,1740575434466,-1795.79,0.00039452,14]
[354560073,1740575434475,-285.74123813,0.00039609,30]
[354560075,1740575434484,-150.0,0.00039609,30]
[354560077,1740575434493,-150.0,0.00039609,30]
[354560079,1740575434503,-2074.41098105,0.00039609,30]
[354560081,1740575434512,-161.40704798,0.00039609,30]
[354560083,1740575434521,-500.0,0.00039726,14]
[354560085,1740575434530,-1003.99,0.00039726,14]
[354560087,1740575434539,-2223.55,0.00039726,14]
[354560089,1740575434549,-500.0,0.00039726,14]
[354560091,1740575434559,-500.0,0.00039726,14]
[354560093,1740575434569,-1633.45,0.00039726,14]
[354560095,1740575434578,-5865.29,0.00039726,14]
[354560097,1740575434587,-506.08,0.00039726,14]